fUSD/lending_fUSD_20240224
["ID","MTS","AMOUNT","RATE_DAILY","PERIOD"]
[315076192,1708803143930,-550.08,0.00028767,2]
[315076193,1708803143940,-500.0,0.00028767,2]
[315076194,1708803143950,-968.72,0.00028767,2]
[315076195,1708803143960,-500.0,0.00028767,2]
[315076196,1708803143969,-3585.38,0.00028767,2]
[315076197,1708803143979,-500.0,0.00028767,2]
[315076198,1708803143989,-500.0,0.00028767,2]
[315076199,1708803143998,-500.0,0.00028767,2]
[315076200,1708803144007,-500.0,0.00028767,2]
[315076201,1708803144017,-536.25,0.00028767,2]
[315076202,1708803144027,-553.09,0.00028767,2]
[315076203,1708803144041,-500.0,0.00028767,2]
[315076204,1708803144051,-500.0,0.00028767,2]
[315076205,1708803144061,-500.0,0.00028767,2]
[315076206,1708803144071,-161.73388862,0.00028767,2]
[315076207,1708803144080,-500.0,0.00028767,2]
[315076208,1708803144089,-624.47,0.00028767,2]
[315076209,1708803144099,-500.0,0.00028767,2]
[315076210,1708803144109,-401.52563847,0.00028767,2]
[315076211,1708803144119,-636.84,0.00028767,2]
[315076212,1708803144129,-729.45,0.00028767,2]
[315076213,1708803144139,-500.0,0.00028767,2]
[315076214,1708803144149,-500.0,0.00028767,2]
[315076215,1708803144158,-511.62,0.00028767,2]
[315076216,1708803144169,-500.0,0.00028767,2]
[315076217,1708803144178,-500.0,0.00028767,2]
[315076218,1708803144187,-500.0,0.00028767,2]
[315076219,1708803144196,-267.53849638,0.00028767,2]
[315076220,1708803144207,-3400.85,0.00028767,2]
[315076221,1708803144216,-765.79,0.00028767,2]
[315076222,1708803144225,-500.0,0.00028767,2]
[315076223,1708803144234,-500.0,0.00028767,2]
[315076224,1708803144243,-338.64179437,0.00028767,2]
[315076225,1708803144252,-500.0,0.00028767,2]
[315076226,1708803144262,-500.0,0.00028767,2]
[315076227,1708803144271,-500.0,0.00028767,2]
[315076228,1708803144280,-544.36,0.00028767,2]
[315076229,1708803144290,-500.0,0.00028767,2]
[315076230,1708803144299,-617.97,0.00028767,2]
[315076231,1708803144308,-805.71,0.00028767,2]
[315076232,1708803144318,-2048.3,0.00028767,2]
[315076233,1708803144327,-500.0,0.00028767,2]
[315076234,1708803144336,-500.0,0.00028767,2]
[315076235,1708803144345,-500.0,0.00028767,2]
[315076236,1708803144355,-500.0,0.00028767,2]
[315076237,1708803144364,-500.0,0.00028767,2]
[315076238,1708803144373,-580.62,0.00028767,2]
[315076239,1708803144382,-500.0,0.00028767,2]
[315076240,1708803144392,-500.0,0.00028767,2]
[315076241,1708803144401,-500.0,0.00028767,2]
[315076242,1708803144410,-500.0,0.00028767,2]
[315076243,1708803144419,-500.0,0.00028767,2]
[315076244,1708803144428,-500.0,0.00028767,2]
[315076245,1708803144438,-500.0,0.00028767,2]
[315076246,1708803144446,-500.0,0.00028767,2]
[315076247,1708803144456,-500.0,0.00028767,2]
[315076248,1708803144465,-500.0,0.00028767,2]
[315076249,1708803144474,-500.0,0.00028767,2]
[315076250,1708803144484,-500.0,0.00028767,2]
[315076251,1708803144493,-1603.43,0.00028767,2]
[315076252,1708803144503,-500.0,0.00028767,2]
[315076253,1708803144512,-500.0,0.00028767,2]
[315076254,1708803144521,-500.0,0.00028767,2]
[315076255,1708803144530,-500.0,0.00028767,2]
[315076256,1708803144539,-500.0,0.00028767,2]
[315076257,1708803144549,-500.0,0.00028767,2]
[315076258,1708803144558,-500.0,0.00028767,2]
[315076259,1708803144568,-590.28,0.00028767,2]
[315076260,1708803144578,-500.0,0.00028767,2]
[315076261,1708803144587,-500.0,0.00028767,2]
[315076262,1708803144597,-500.0,0.00028767,2]
[315076263,1708803144606,-324.850792,0.00028767,2]
[315076264,1708803144615,-500.0,0.00028767,2]
[315076265,1708803144624,-500.0,0.00028767,2]
[315076266,1708803144634,-500.0,0.00028767,2]
[315076267,1708803144644,-500.0,0.00028767,2]
[315076268,1708803144653,-500.0,0.00028767,2]
[315076269,1708803144663,-500.0,0.00028767,2]
[315076270,1708803144672,-1420.04,0.00028767,2]
[315076271,1708803144682,-500.0,0.00028767,2]
[315076272,1708803144691,-500.0,0.00028767,2]
[315076273,1708803144701,-500.0,0.00028767,2]
[315076274,1708803144711,-508.01,0.00028767,2]
[315076275,1708803144721,-883.75,0.00028767,2]
[315076276,1708803144730,-500.0,0.00028767,2]
[315076277,1708803144740,-500.0,0.00028767,2]
[315076278,1708803144749,-522.97,0.00028767,2]
[315076279,1708803144759,-500.0,0.00028767,2]
[315076280,1708803144768,-500.0,0.00028767,2]
[315076281,1708803144778,-500.0,0.00028767,2]
[315076282,1708803144787,-500.0,0.00028767,2]
[315076283,1708803144796,-577.77,0.00028767,2]
[315076284,1708803144806,-500.0,0.00028767,2]
[315076285,1708803144815,-500.0,0.00028767,2]
[315076286,1708803144824,-500.0,0.00028767,2]
[315076287,1708803144834,-500.0,0.00028767,2]
[315076288,1708803144843,-783.17,0.00028767,2]
[315076289,1708803144852,-500.0,0.00028767,2]
[315076290,1708803144862,-803.41,0.00028767,2]
[315076291,1708803144871,-500.0,0.00028767,2]
[315076292,1708803144881,-546.45,0.00028767,2]
[315076293,1708803144891,-500.0,0.00028767,2]
[315076294,1708803144900,-500.0,0.00028767,2]
[315076295,1708803144911,-3299.19,0.00028767,2]
[315076296,1708803144920,-500.0,0.00028767,2]
[315076297,1708803144929,-500.0,0.00028767,2]
[315076298,1708803144938,-3559.89,0.00028767,2]
[315076299,1708803144947,-1355.1,0.00028767,2]
[315076300,1708803144957,-500.0,0.00028767,2]
[315076301,1708803144966,-2056.09,0.00028767,2]
[315076302,1708803144975,-500.0,0.00028767,2]
[315076303,1708803144985,-500.0,0.00028767,2]
[315076304,1708803144994,-500.0,0.00028767,2]
[315076305,1708803145003,-500.0,0.00028767,2]
[315076306,1708803145013,-500.0,0.00028767,2]
[315076307,1708803145023,-500.0,0.00028767,2]
[315076308,1708803145036,-500.0,0.00028767,2]
[315076309,1708803145047,-802.48,0.00028767,2]
[315076310,1708803145058,-500.0,0.00028767,2]
[315076311,1708803145068,-500.0,0.00028767,2]
[315076312,1708803145079,-500.0,0.00028767,2]
[315076313,1708803145089,-500.0,0.00028767,2]
[315076314,1708803145099,-1301.76,0.00028767,2]
[315076315,1708803145109,-500.0,0.00028767,2]
[315076316,1708803145119,-423.78305119,0.00028767,2]
[315076317,1708803145131,-500.0,0.00028767,2]
[315076318,1708803145140,-500.0,0.00028767,2]
[315076319,1708803145150,-500.0,0.00028767,2]
[315076320,1708803145160,-500.0,0.00028767,2]
[315076321,1708803145170,-2635.7,0.00028767,2]
[315076322,1708803145179,-500.0,0.00028767,2]
[315076323,1708803145189,-708.14,0.00028767,2]
[315076324,1708803145198,-1143.03,0.00028767,2]
[315076325,1708803145208,-500.0,0.00028767,2]
[315076326,1708803145218,-917.12,0.00028767,2]
[315076327,1708803145228,-608.36,0.00028767,2]
[315076328,1708803145237,-659.11,0.00028767,2]
[315076329,1708803145247,-500.0,0.00028767,2]
[315076330,1708803145257,-500.0,0.00028767,2]
[315076331,1708803145267,-500.0,0.00028767,2]
[315076332,1708803145277,-837.68,0.00028767,2]
[315076333,1708803145287,-500.0,0.00028767,2]
[315076334,1708803145297,-6793.12,0.00028767,2]
[315076335,1708803145307,-1609.45,0.00028767,2]
[315076336,1708803145316,-1113.76,0.00028767,2]
[315076337,1708803145326,-443.49288994,0.00028767,2]
[315076338,1708803145335,-500.0,0.00028767,2]
[315076339,1708803145345,-192.3,0.00028767,2]
[315076340,1708803145354,-500.0,0.00028767,2]
[315076341,1708803145364,-1003.71,0.00028767,2]
[315076342,1708803145373,-2373.7,0.00028767,2]
[315076343,1708803145383,-500.0,0.00028767,2]
[315076344,1708803145392,-500.0,0.00028767,2]
[315076345,1708803145402,-181.78207036,0.00028767,2]
[315076346,1708803145411,-500.0,0.00028767,2]
[315076347,1708803145421,-500.0,0.00028767,2]
[315076348,1708803145430,-500.0,0.00028767,2]
[315076349,1708803145440,-500.0,0.00028767,2]
[315076350,1708803145449,-500.0,0.00028767,2]
[315076351,1708803145459,-2314.68,0.00028767,2]
[315076352,1708803145468,-500.0,0.00028767,2]
[315076353,1708803145477,-500.0,0.00028767,2]
[315076354,1708803145487,-1613.34,0.00028767,2]
[315076355,1708803145496,-1242.35,0.00028767,2]
[315076356,1708803145506,-660.51,0.00028767,2]
[315076357,1708803145516,-690.4,0.00028767,2]
[315076358,1708803145526,-500.0,0.00028767,2]
[315076359,1708803145536,-500.0,0.00028767,2]
[315076360,1708803145545,-500.0,0.00028767,2]
[315076361,1708803145555,-500.0,0.00028767,2]
[315076362,1708803145565,-2690.21,0.00028767,2]
[315076363,1708803145575,-500.0,0.00028767,2]
[315076364,1708803145585,-7014.8,0.00028767,2]
[315076365,1708803145595,-1270.85,0.00028767,2]
[315076366,1708803145605,-500.0,0.00028767,2]
[315076367,1708803145614,-500.0,0.00028767,2]
[315076368,1708803145624,-198.35,0.00028767,2]
[315076369,1708803145634,-2320.5,0.00028767,2]
[315076370,1708803145644,-5957.84,0.00028767,2]
[315076371,1708803145656,-500.0,0.00028767,2]
[315076372,1708803145667,-500.0,0.00028767,2]
[315076373,1708803145677,-500.0,0.00028767,2]
[315076374,1708803145687,-500.0,0.00028767,2]
[315076375,1708803145697,-500.0,0.00028767,2]
[315076376,1708803145708,-500.0,0.00028767,2]
[315076377,1708803145718,-500.0,0.00028767,2]
[315076378,1708803145729,-526.18370629,0.00028767,2]
[315076379,1708803145740,-1555.66,0.00028767,2]
[315076380,1708803145751,-1338.89,0.00028767,2]
[315076381,1708803145761,-500.0,0.00028767,2]
[315076382,1708803145771,-500.0,0.00028767,2]
[315076383,1708803145782,-447.29733968,0.00028767,2]
[315076384,1708803145792,-500.0,0.00028767,2]
[315076385,1708803145803,-4041.57,0.00028767,2]
[315076386,1708803145814,-607.55,0.00028767,2]
[315076387,1708803145824,-500.0,0.00028767,2]
[315076388,1708803145835,-500.0,0.00028767,2]
[315076389,1708803145845,-500.0,0.00028767,2]
[315076390,1708803145855,-17314.55,0.00028767,2]
[315076391,1708803145865,-500.0,0.00028767,2]
[315076392,1708803145876,-500.0,0.00028767,2]
[315076393,1708803145885,-500.0,0.00028767,2]
[315076394,1708803145898,-500.0,0.00028767,2]
[315076395,1708803145909,-500.0,0.00028767,2]
[315076396,1708803145920,-500.0,0.00028767,2]
[315076397,1708803145930,-537.92,0.00028767,2]
[315076398,1708803145940,-500.0,0.00028767,2]
[315076399,1708803145951,-500.0,0.00028767,2]
[315076400,1708803145961,-500.0,0.00028767,2]
[315076401,1708803145972,-500.0,0.00028767,2]
[315076402,1708803145987,-500.0,0.00028767,2]
[315076403,1708803145997,-500.0,0.00028767,2]
[315076404,1708803146007,-1672.21,0.00028767,2]
[315076405,1708803146017,-500.0,0.00028767,2]
[315076406,1708803146028,-500.0,0.00028767,2]
[315076407,1708803146042,-572.47,0.00028767,2]
[315076408,1708803146052,-961.1,0.00028767,2]
[315076409,1708803146063,-500.0,0.00028767,2]
[315076410,1708803146074,-500.0,0.00028767,2]
[315076411,1708803146084,-500.0,0.00028767,2]
[315076412,1708803146096,-511.63265245,0.00028767,2]
[315076413,1708803146114,-500.0,0.00028767,2]
[315076414,1708803146126,-500.0,0.00028767,2]
[315076415,1708803146136,-500.0,0.00028767,2]
[315076416,1708803146147,-5616.67,0.00028767,2]
[315076417,1708803146157,-500.0,0.00028767,2]
[315076418,1708803146168,-529.43,0.00028767,2]
[315076419,1708803146178,-500.0,0.00028767,2]
[315076420,1708803146188,-500.0,0.00028767,2]
[315076421,1708803146199,-524.87,0.00028767,2]
[315076422,1708803146209,-500.0,0.00028767,2]
[315076423,1708803146220,-500.0,0.00028767,2]
[315076424,1708803146230,-500.0,0.00028767,2]
[315076425,1708803146240,-4701.11,0.00028767,2]
[315076426,1708803146251,-1428.36,0.00028767,2]
[315076427,1708803146261,-795.2,0.00028767,2]
[315076428,1708803146272,-500.0,0.00028767,2]
[315076429,1708803146283,-500.0,0.00028767,2]
[315076430,1708803146293,-500.0,0.00028767,2]
[315076431,1708803146304,-500.0,0.00028767,2]
[315076432,1708803146314,-854.47,0.00028767,2]
[315076433,1708803146325,-1665.61,0.00028767,2]
[315076434,1708803146336,-500.0,0.00028767,2]
[315076435,1708803146346,-4566.55,0.00028767,2]
[315076436,1708803146358,-500.0,0.00028767,2]
[315076437,1708803146369,-823.53,0.00028767,2]
[315076438,1708803146379,-500.0,0.00028767,2]
[315076439,1708803146390,-500.0,0.00028767,2]
[315076440,1708803146400,-764.15,0.00028767,2]
[315076441,1708803146411,-500.0,0.00028767,2]
[315076442,1708803146421,-500.0,0.00028767,2]
[315076443,1708803146432,-500.0,0.00028767,2]
[315076444,1708803146442,-500.0,0.00028767,2]
[315076445,1708803146452,-1454.56,0.00028767,2]
[315076446,1708803146462,-9398.91,0.00028767,2]
[315076447,1708803146473,-827.47,0.00028767,2]
[315076448,1708803146484,-580.01,0.00028767,2]
[315076449,1708803146495,-319.65954098,0.00028767,2]
[315076450,1708803146505,-500.0,0.00028767,2]
[315076451,1708803146516,-524.27,0.00028767,2]
[315076452,1708803146526,-500.0,0.00028767,2]
[315076453,1708803146536,-500.0,0.00028767,2]
[315076454,1708803146547,-500.0,0.00028767,2]
[315076455,1708803146558,-500.0,0.00028767,2]
[315076456,1708803146569,-1842.2,0.00028767,2]
[315076457,1708803146580,-511.51,0.00028767,2]
[315076458,1708803146591,-500.0,0.00028767,2]
[315076459,1708803146601,-500.0,0.00028767,2]
[315076460,1708803146611,-1147.43,0.00028767,2]
[315076461,1708803146621,-500.0,0.00028767,2]
[315076462,1708803146632,-500.0,0.00028767,2]
[315076463,1708803146642,-541.31,0.00028767,2]
[315076464,1708803146653,-995.13,0.00028767,2]
[315076465,1708803146664,-500.0,0.00028767,2]
[315076466,1708803146674,-500.0,0.00028767,2]
[315076467,1708803146686,-500.0,0.00028767,2]
[315076468,1708803146696,-518.58385859,0.00028767,2]
[315076469,1708803146706,-5408.04,0.00028767,2]
[315076470,1708803146717,-500.0,0.00028767,2]
[315076471,1708803146728,-667.27,0.00028767,2]
[315076472,1708803146738,-631.46,0.00028767,2]
[315076473,1708803146749,-500.0,0.00028767,2]
[315076474,1708803146760,-538.59,0.00028767,2]
[315076475,1708803146770,-515.73671089,0.00028767,2]
[315076476,1708803146781,-989.86,0.00028767,2]
[315076477,1708803146792,-889.85,0.00028767,2]
[315076478,1708803146802,-813.16,0.00028767,2]
[315076479,1708803146813,-500.0,0.00028767,2]
[315076480,1708803146824,-500.0,0.00028767,2]
[315076481,1708803146834,-324.7460284,0.00028767,2]
[315076482,1708803146845,-1010.54,0.00028767,2]
[315076483,1708803146855,-500.0,0.00028767,2]
[315076484,1708803146865,-702.19,0.00028767,2]
[315076485,1708803146875,-2273.32,0.00028767,2]
[315076486,1708803146885,-539.00977414,0.00028767,2]
[315076487,1708803146896,-500.0,0.00028767,2]
[315076488,1708803146907,-5172.46,0.00028767,2]
[315076489,1708803146917,-967.34,0.00028767,2]
[315076490,1708803146928,-500.0,0.00028767,2]
[315076491,1708803146939,-500.0,0.00028767,2]
[315076492,1708803146949,-964.79,0.00028767,2]
[315076493,1708803146960,-500.0,0.00028767,2]
[315076494,1708803146972,-500.0,0.00028767,2]
[315076495,1708803146982,-500.0,0.00028767,2]
[315076496,1708803146993,-500.0,0.00028767,2]
[315076497,1708803147003,-599.51,0.00028767,2]
[315076498,1708803147013,-500.0,0.00028767,2]
[315076499,1708803147023,-500.0,0.00028767,2]
[315076500,1708803147037,-752.25,0.00028767,2]
[315076501,1708803147048,-587.58,0.00028767,2]
[315076502,1708803147058,-500.0,0.00028767,2]
[315076503,1708803147069,-500.0,0.00028767,2]
[315076504,1708803147079,-500.0,0.00028767,2]
[315076505,1708803147090,-1254.89,0.00028767,2]
[315076506,1708803147100,-625.57,0.00028767,2]
[315076507,1708803147111,-500.0,0.00028767,2]
[315076508,1708803147122,-1064.6,0.00028767,2]
[315076509,1708803147132,-588.64,0.00028767,2]
[315076510,1708803147143,-500.0,0.00028767,2]
[315076511,1708803147153,-500.0,0.00028767,2]
[315076512,1708803147164,-1164.09,0.00028767,2]
[315076513,1708803147174,-500.0,0.00028767,2]
[315076514,1708803147184,-500.0,0.00028767,2]
[315076515,1708803147195,-500.0,0.00028767,2]
[315076516,1708803147206,-500.0,0.00028767,2]
[315076517,1708803147218,-500.0,0.00028767,2]
[315076518,1708803147229,-1100.36,0.00028767,2]
[315076519,1708803147241,-617.74,0.00028767,2]
[315076520,1708803147251,-500.0,0.00028767,2]
[315076521,1708803147261,-500.0,0.00028767,2]
[315076522,1708803147272,-1036.73,0.00028767,2]
[315076523,1708803147283,-500.0,0.00028767,2]
[315076524,1708803147294,-709.2,0.00028767,2]
[315076525,1708803147567,-500.0,0.00028767,2]
[315076526,1708803147577,-500.0,0.00028767,2]
[315076527,1708803147587,-500.0,0.00028767,2]
[315076528,1708803147597,-940.79,0.00028767,2]
[315076529,1708803147607,-2912.08,0.00028767,2]
[315076530,1708803147616,-500.0,0.00028767,2]
[315076531,1708803147627,-500.0,0.00028767,2]
[315076532,1708803147637,-500.0,0.00028767,2]
[315076533,1708803147646,-500.0,0.00028767,2]
[315076534,1708803147656,-500.0,0.00028767,2]
[315076535,1708803147666,-500.0,0.00028767,2]
[315076536,1708803147675,-1056.04,0.00028767,2]
[315076537,1708803147686,-500.0,0.00028767,2]
[315076538,1708803147696,-500.0,0.00028767,2]
[315076539,1708803147706,-500.0,0.00028767,2]
[315076540,1708803147717,-2749.09,0.00028767,2]
[315076541,1708803147727,-2790.69,0.00028767,2]
[315076542,1708803147737,-500.0,0.00028767,2]
[315076543,1708803147747,-1119.12,0.00028767,2]
[315076544,1708803147757,-1223.47,0.00028767,2]
[315076545,1708803147767,-500.0,0.00028767,2]
[315076546,1708803147777,-1975.24,0.00028767,2]
[315076547,1708803147787,-500.0,0.00028767,2]
[315076548,1708803147797,-500.0,0.00028767,2]
[315076549,1708803147807,-1958.55,0.00028767,2]
[315076550,1708803147817,-500.0,0.00028767,2]
[315076551,1708803147828,-549.07,0.00028767,2]
[315076552,1708803147838,-775.63,0.00028767,2]
[315076553,1708803147847,-500.0,0.00028767,2]
[315076554,1708803147857,-500.0,0.00028767,2]
[315076555,1708803147867,-500.0,0.00028767,2]
[315076556,1708803147877,-500.0,0.00028767,2]
[315076557,1708803147887,-970.01,0.00028767,2]
[315076558,1708803147897,-500.0,0.00028767,2]
[315076559,1708803147907,-1744.69,0.00028767,2]
[315076560,1708803147916,-500.0,0.00028767,2]
[315076561,1708803147926,-1611.08,0.00028767,2]
[315076562,1708803147936,-814.05,0.00028767,2]
[315076563,1708803147946,-516.62660846,0.00028767,2]
[315076564,1708803147955,-1746.12,0.00028767,2]
[315076565,1708803147964,-1946.07,0.00028767,2]
[315076566,1708803147974,-500.0,0.00028767,2]
[315076567,1708803147984,-500.0,0.00028767,2]
[315076568,1708803147993,-839.25,0.00028767,2]
[315076569,1708803148003,-500.0,0.00028767,2]
[315076570,1708803148013,-518.34,0.00028767,2]
[315076571,1708803148023,-1292.86,0.00028767,2]
[315076572,1708803148034,-500.0,0.00028767,2]
[315076573,1708803148044,-500.0,0.00028767,2]
[315076574,1708803148054,-500.0,0.00028767,2]
[315076575,1708803148063,-774.37,0.00028767,2]
[315076576,1708803148072,-669.33,0.00028767,2]
[315076577,1708803148082,-500.0,0.00028767,2]
[315076578,1708803148092,-500.0,0.00028767,2]
[315076579,1708803148101,-500.0,0.00028767,2]
[315076580,1708803148112,-4962.31,0.00028767,2]
[315076581,1708803148122,-500.0,0.00028767,2]
[315076582,1708803148131,-751.52,0.00028767,2]
[315076583,1708803148141,-1093.9,0.00028767,2]
[315076584,1708803148151,-500.0,0.00028767,2]
[315076585,1708803148161,-500.0,0.00028767,2]
[315076586,1708803148171,-500.0,0.00028767,2]
[315076587,1708803148181,-3661.17,0.00028767,2]
[315076588,1708803148191,-500.0,0.00028767,2]
[315076589,1708803148201,-500.0,0.00028767,2]
[315076590,1708803148211,-398.60395097,0.00028767,2]
[315076591,1708803148222,-500.0,0.00028767,2]
[315076592,1708803148232,-1737.75,0.00028767,2]
[315076593,1708803148243,-767.59,0.00028767,2]
[315076594,1708803148252,-957.81,0.00028767,2]
[315076595,1708803148262,-3237.43,0.00028767,2]
[315076596,1708803148272,-500.0,0.00028767,2]
[315076597,1708803148283,-500.0,0.00028767,2]
[315076598,1708803148294,-500.0,0.00028767,2]
[315076599,1708803148304,-500.0,0.00028767,2]
[315076600,1708803148314,-500.0,0.00028767,2]
[315076601,1708803148324,-9004.71,0.00028767,2]
[315076602,1708803148334,-500.0,0.00028767,2]
[315076603,1708803148344,-500.0,0.00028767,2]
[315076604,1708803148354,-1161.28,0.00028767,2]
[315076605,1708803148365,-1128.57,0.00028767,2]
[315076606,1708803148374,-500.0,0.00028767,2]
[315076607,1708803148384,-500.0,0.00028767,2]
[315076608,1708803148395,-1472.41,0.00028767,2]
[315076609,1708803148404,-1255.36,0.00028767,2]
[315076610,1708803148414,-1127.42,0.00028767,2]
[315076611,1708803148424,-500.0,0.00028767,2]
[315076612,1708803148433,-1003.31,0.00028767,2]
[315076613,1708803148442,-755.03,0.00028767,2]
[315076614,1708803148452,-639.8,0.00028767,2]
[315076615,1708803148462,-500.0,0.00028767,2]
[315076616,1708803148472,-500.0,0.00028767,2]
[315076617,1708803148482,-1461.29,0.00028767,2]
[315076618,1708803148492,-633.7,0.00028767,2]
[315076619,1708803148501,-997.83,0.00028767,2]
[315076620,1708803148511,-500.0,0.00028767,2]
[315076621,1708803148521,-1510.0,0.00028767,2]
[315076622,1708803148531,-500.0,0.00028767,2]
[315076623,1708803148541,-500.0,0.00028767,2]
[315076624,1708803148551,-500.0,0.00028767,2]
[315076625,1708803148560,-500.0,0.00028767,2]
[315076626,1708803148570,-1701.35,0.00028767,2]
[315076627,1708803148580,-1534.47,0.00028767,2]
[315076628,1708803148590,-1054.78,0.00028767,2]
[315076629,1708803148599,-672.9,0.00028767,2]
[315076630,1708803148609,-601.44,0.00028767,2]
[315076631,1708803148618,-643.23,0.00028767,2]
[315076632,1708803148628,-7295.84,0.00028767,2]
[315076633,1708803148637,-508.67838786,0.00028767,2]
[315076634,1708803148646,-812.11,0.00028767,2]
[315076635,1708803148656,-500.0,0.00028767,2]
[315076636,1708803148665,-500.0,0.00028767,2]
[315076637,1708803148675,-391.84,0.00028767,2]
[315076638,1708803148684,-500.0,0.00028767,2]
[315076639,1708803148693,-1704.32,0.00028767,2]
[315076640,1708803148702,-500.0,0.00028767,2]
[315076641,1708803148712,-845.08,0.00028767,2]
[315076642,1708803148721,-11405.28,0.00028767,2]
[315076643,1708803148732,-500.0,0.00028767,2]
[315076644,1708803148741,-500.0,0.00028767,2]
[315076645,1708803148751,-962.8,0.00028767,2]
[315076646,1708803148761,-2742.61,0.00028767,2]
[315076647,1708803148771,-500.0,0.00028767,2]
[315076648,1708803148780,-500.0,0.00028767,2]
[315076649,1708803148790,-500.0,0.00028767,2]
[315076650,1708803148799,-1029.73,0.00028767,2]
[315076651,1708803148809,-500.0,0.00028767,2]
[315076652,1708803148818,-548.14734754,0.00028767,2]
[315076653,1708803148828,-555.78,0.00028767,2]
[315076654,1708803148837,-500.0,0.00028767,2]
[315076655,1708803148846,-618.9,0.00028767,2]
[315076656,1708803148856,-500.0,0.00028767,2]
[315076657,1708803148866,-500.0,0.00028767,2]
[315076658,1708803148875,-748.88,0.00028767,2]
[315076659,1708803148885,-500.0,0.00028767,2]
[315076660,1708803148894,-2316.98,0.00028767,2]
[315076661,1708803148904,-1664.89,0.00028767,2]
[315076662,1708803148913,-500.0,0.00028767,2]
[315076663,1708803148923,-500.0,0.00028767,2]
[315076664,1708803148932,-500.0,0.00028767,2]
[315076665,1708803148942,-677.04,0.00028767,2]
[315076666,1708803148951,-3191.92,0.00028767,2]
[315076667,1708803148961,-500.0,0.00028767,2]
[315076668,1708803148970,-2773.02,0.00028767,2]
[315076669,1708803148980,-500.0,0.00028767,2]
[315076670,1708803148989,-1060.5,0.00028767,2]
[315076671,1708803148998,-516.05089273,0.00028767,2]
[315076672,1708803149008,-500.0,0.00028767,2]
[315076673,1708803149017,-2325.67,0.00028767,2]
[315076674,1708803149026,-461.10941992,0.00028767,2]
[315076675,1708803149039,-150.0,0.00028778,2]
[315076676,1708803149048,-150.0,0.00028778,2]
[315076677,1708803149058,-155.33050103,0.00028796,2]
[315076678,1708803149067,-150.0,0.00028802,2]
[315076679,1708803149077,-150.0,0.00028802,2]
[315076680,1708803149087,-27865.49,0.00028822,2]
[315076681,1708803149096,-5515.18060297,0.00028834,2]
[315076682,1708803149106,-1472.25196939,0.00028834,2]
[315076683,1708803149119,-2305.35545782,0.00028834,2]
[315076684,1708803149129,-925.07041306,0.00028834,2]
[315076685,1708803149139,-200.0,0.0002886,2]
[315076686,1708803149148,-153.55876888,0.00028884,2]
[315076687,1708803149158,-155.71351625,0.00028894,2]
[315076688,1708803149168,-200.0,0.000289,2]
[315076689,1708803149177,-150.0,0.000289,2]
[315076690,1708803149186,-380.0,0.000289,17]
[315076691,1708803149199,-155.33050103,0.00028904,2]